bitfinex-derivatives/quotes_BTCF0:USTF0_20241227
["timestamp","ask_amount","ask_price","bid_price","bid_amount"]
[1735310048402,0.05071483,95988.0,95971.0,0.0508]
[1735310048603,0.05071483,95988.0,95972.0,0.001]
[1735310049011,0.05171483,95988.0,95987.0,0.05215]
[1735310049503,0.001,95988.0,95987.0,0.05215]
[1735310049698,0.21555301,95995.0,95972.0,0.001]
[1735310049909,0.21555301,95995.0,95990.0,0.052148]
[1735310050105,0.21555301,95995.0,95972.0,0.002]
[1735310050414,0.21555301,95995.0,95993.0,0.052146]
[1735310050909,0.26626784,95995.0,95993.0,0.052146]
[1735310051809,0.27326784,95995.0,95993.0,0.053146]
[1735310052010,0.27326784,95995.0,95981.0,0.052153]
[1735310052011,0.22255301,95995.0,95981.0,0.052153]
[1735310052517,0.22255301,95995.0,95971.0,0.0508]
[1735310052518,0.22255301,95995.0,95993.0,0.052146]
[1735310052918,0.05071483,95994.0,95993.0,0.052146]
[1735310053413,8.3e-07,95995.0,95993.0,0.052146]
[1735310053711,0.21555301,96006.0,95993.0,0.352146]
[1735310053917,0.00096001,96013.0,96005.0,0.05214]
[1735310054211,0.21555301,96019.0,96018.0,0.052133]
[1735310054905,0.052134,96017.0,96010.0,0.052137]
[1735310055107,0.052137,96012.0,96005.0,0.001]
[1735310055311,0.052137,96012.0,96005.0,0.05314]
[1735310055616,0.052137,96012.0,96006.0,0.052139]
[1735310056012,0.007,96013.0,96012.0,0.052136]
[1735310056608,0.007,96013.0,95990.0,0.15589504]
[1735310056609,0.18518776,96023.0,96018.0,0.001]
[1735310056813,0.052129,96026.0,96018.0,0.001]
[1735310056814,0.006,96019.0,96018.0,0.001]
[1735310057214,0.006,96019.0,96017.0,0.052133]
[1735310057416,0.052135,96025.0,96017.0,0.052133]
[1735310058002,0.15589504,96030.0,96019.0,0.052138]
[1735310058207,0.15589504,96030.0,96022.0,0.052136]
[1735310058506,0.15589504,96030.0,96023.0,0.052135]
[1735310058714,0.052131,96031.0,96025.0,0.052134]
[1735310058915,0.052141,96014.0,95990.0,0.052153]
[1735310059213,0.15589504,96010.0,96003.0,0.052146]
[1735310059517,0.058138,96019.0,96017.0,0.001]
[1735310060312,0.003,96010.0,96003.0,0.052146]
[1735310060710,0.052145,96005.0,95981.0,0.0995]
[1735310060918,0.003,96010.0,96003.0,0.052146]
[1735310061115,0.003,96010.0,95971.0,0.052164]
[1735310061315,0.003,96010.0,95987.0,0.052155]
[1735310061316,0.12341476,95989.0,95987.0,0.052155]
[1735310062612,0.15426846,95990.0,95988.0,0.052154]
[1735310062932,4.6e-07,95990.0,95988.0,0.052154]
[1735310063123,0.21555301,96019.0,96018.0,0.052138]
[1735310063816,0.21555301,96024.0,96023.0,0.052135]
[1735310065821,0.052128,96027.0,96023.0,0.052135]
[1735310066017,0.0501,96034.0,96018.0,0.001]
[1735310066221,0.052125,96033.0,96027.0,0.052128]
[1735310066412,0.052125,96033.0,96004.0,0.05214]
[1735310066612,0.0501,96034.0,96000.0,0.15589504]
[1735310066821,0.0501,96034.0,96032.0,0.052125]
[1735310067217,0.0521,96034.0,96024.0,0.052129]
[1735310068125,0.0521,96034.0,96000.0,0.15789504]
[1735310068311,0.002,96034.0,96032.0,0.052125]
[1735310068623,0.052123,96036.0,96032.0,0.052125]
[1735310068812,0.052123,96036.0,96032.0,0.054125]
[1735310069213,0.052123,96036.0,96033.0,0.052124]
[1735310070020,0.05069549,96035.0,96033.0,0.052124]
[1735310071019,0.05069549,96035.0,96033.0,0.055124]
[1735310071210,0.05069549,96041.0,96040.0,0.052121]
[1735310072222,0.05069549,96053.0,96052.0,0.052115]
[1735310073627,0.00208205,96059.0,96052.0,0.052115]
[1735310073824,0.00208205,96059.0,96058.0,0.052111]
[1735310074223,0.00208205,96059.0,96052.0,0.001]
[1735310074719,0.00208205,96059.0,96045.0,0.052118]
[1735310074913,0.00208205,96059.0,96041.0,0.0499]
[1735310075127,0.00208205,96059.0,96053.0,0.052114]
[1735310075822,0.30208205,96059.0,96029.0,0.052127]
[1735310076014,0.052121,96040.0,96032.0,0.052125]
[1735310076324,0.12301755,96055.0,96021.0,0.00156194]
[1735310076527,0.12301755,96055.0,96032.0,0.052125]
[1735310076821,0.052119,96044.0,96032.0,0.052125]
[1735310077026,0.15589504,96042.0,96029.0,0.004]
[1735310077228,0.052126,96032.0,96029.0,0.004]
[1735310078825,0.0921814,96038.0,96029.0,0.004]
[1735310078826,0.052126,96031.0,96029.0,0.004]
[1735310079022,0.0921814,96038.0,95983.0,0.052152]
[1735310079023,0.052133,96018.0,95983.0,0.052152]
[1735310079218,0.15589504,96020.0,95993.0,0.0476]
[1735310079419,0.15589504,96020.0,96012.0,0.052136]
[1735310079619,0.05213,96025.0,95993.0,0.0476]
[1735310079823,0.15589504,96030.0,95993.0,0.3476]
[1735310080020,0.15589504,96030.0,95995.0,0.052145]
[1735310080326,0.052129,96026.0,95995.0,0.052145]
[1735310080517,0.09215988,96009.0,95995.0,0.052145]
[1735310080722,0.09215988,96009.0,96008.0,0.052138]
[1735310081823,0.15589504,96020.0,95993.0,0.0496]
[1735310081824,0.12287984,96013.0,95993.0,0.0496]
[1735310082024,0.12287984,96013.0,96009.0,0.052137]
[1735310082229,0.12287984,96013.0,96011.0,0.052136]
[1735310083133,0.12287984,96015.0,96011.0,0.052136]
[1735310083833,0.12287984,96015.0,96013.0,0.052135]
[1735310084332,0.12287984,96014.0,96013.0,0.052135]
[1735310085027,0.052138,96009.0,95995.0,0.052145]
[1735310085331,0.15589504,96005.0,95990.0,0.00056]
[1735310085535,0.15589504,96005.0,95970.0,0.24961697]
[1735310085729,0.15589504,96005.0,95996.0,0.05215]
[1735310086725,0.05215,95998.0,95988.0,0.052154]
[1735310086928,0.15589504,96005.0,95970.0,0.41585792]
[1735310087127,0.12298098,95997.0,95995.0,0.05215]
[1735310088232,0.17513098,95997.0,95969.0,0.0466]
[1735310088437,0.052151,95994.0,95980.0,0.052159]
[1735310088730,0.052155,95988.0,95980.0,0.052159]
[1735310089637,0.15589504,95990.0,95969.0,0.0466]
[1735310089835,0.15589504,95990.0,95956.0,0.24961697]
[1735310089836,0.15589504,95980.0,95956.0,0.24961697]
[1735310090037,0.002,95994.0,95956.0,0.24961697]
[1735310090038,0.15589504,95966.0,95965.0,0.052167]
[1735310090533,0.052162,95974.0,95954.0,0.0471]
[1735310090839,0.15589504,95975.0,95969.0,0.007]
[1735310091339,0.15589504,95975.0,95965.0,0.006]
[1735310091727,0.15589504,95975.0,95970.0,0.052164]
[1735310092149,0.15589504,95975.0,95965.0,0.006]
[1735310092528,0.45589504,95975.0,95952.0,0.052174]
[1735310092736,0.15589504,95962.0,95952.0,0.052174]
[1735310093035,0.15589504,95962.0,95954.0,0.052173]
[1735310093232,0.15589504,95962.0,95942.0,0.00156324]
[1735310093731,0.27887602,95970.0,95958.0,0.05217]
[1735310093941,0.052167,95965.0,95958.0,0.05217]
[1735310094434,0.052168,95963.0,95952.0,0.004]
[1735310094635,0.15589504,95962.0,95952.0,0.004]
[1735310095427,0.052169,95961.0,95952.0,0.056174]
[1735310095835,0.15589504,95962.0,95952.0,0.052174]
[1735310095836,0.05217,95960.0,95952.0,0.052174]
[1735310096338,0.15589504,95962.0,95942.0,0.00156324]
[1735310096545,0.09189418,95968.0,95952.0,0.003]
[1735310096842,0.05217,95959.0,95952.0,0.003]
[1735310097033,0.052171,95958.0,95952.0,0.003]
[1735310097233,0.052172,95955.0,95952.0,0.003]
[1735310097430,0.052173,95954.0,95952.0,0.003]
[1735310097632,0.09189418,95968.0,95942.0,0.00156324]
[1735310097633,0.052179,95944.0,95942.0,0.00156324]
[1735310098345,0.052179,95944.0,95938.0,0.052181]
[1735310098839,0.10450555,95952.0,95920.0,0.01020603]
[1735310099041,0.10450555,95952.0,95947.0,0.052176]
[1735310099241,0.10450555,95952.0,95942.0,0.052179]
[1735310099447,0.004,95944.0,95920.0,0.10450555]
[1735310099644,0.004,95944.0,95943.0,0.052179]
[1735310101240,0.15315697,95969.0,95943.0,0.052179]
[1735310101241,0.052163,95972.0,95961.0,0.052169]
[1735310101730,0.10450555,95971.0,95961.0,0.052169]
[1735310101929,0.10450555,95971.0,95944.0,0.0469]
[1735310102143,0.15667721,95970.0,95944.0,0.0469]
[1735310102340,0.09189418,95968.0,95967.0,0.052166]
[1735310103940,0.09189418,95968.0,95967.0,0.053166]
[1735310104243,0.15667721,96000.0,95991.0,0.052153]
[1735310104450,0.052152,95994.0,95981.0,0.052158]
[1735310104648,0.052152,95994.0,95967.0,0.053166]
[1735310104945,0.052154,95990.0,95978.0,0.05216]
[1735310105144,0.052154,95990.0,95967.0,0.001]
[1735310105344,0.12298098,96002.0,95992.0,0.0037]
[1735310105645,0.23641002,96079.0,96029.0,0.5215]
[1735310105847,0.01049096,96098.0,96070.0,0.15667721]
[1735310106048,0.01049096,96098.0,96040.0,0.15667721]
[1735310106049,0.55737584,96081.0,96060.0,0.15667721]
[1735310106243,0.55737584,96081.0,96076.0,0.052107]
[1735310106551,0.052108,96075.0,96054.0,0.052119]
[1735310106844,0.15667721,96070.0,96029.0,0.001]
[1735310107055,0.052122,96048.0,96029.0,0.001]
[1735310107239,0.052122,96048.0,96030.0,0.052131]
[1735310107847,0.15667721,96040.0,96030.0,0.052131]
[1735310108257,0.15667721,96040.0,96029.0,0.004]
[1735310108563,0.052127,96038.0,96003.0,0.31118132]
[1735310108761,0.052127,96038.0,96009.0,0.24780949]
[1735310108965,0.052127,96038.0,96019.0,0.052137]
[1735310109459,0.15667721,96030.0,96019.0,0.052137]
[1735310109666,0.3,96029.0,96019.0,0.052137]
[1735310109960,0.052129,96035.0,96019.0,0.052137]
[1735310110368,0.3,96034.0,96019.0,0.052137]
[1735310110660,0.1006,96039.0,96030.0,0.001]
[1735310111265,0.052131,96032.0,96030.0,0.001]
[1735310111464,0.1006,96039.0,96015.0,0.052139]
[1735310111465,0.052133,96028.0,96015.0,0.052139]
[1735310111665,0.052133,96028.0,95994.0,0.051]
[1735310111666,0.002,96029.0,95994.0,0.051]
[1735310111867,0.001,96034.0,96027.0,0.052133]
[1735310112057,0.0464,96068.0,96030.0,0.15667721]
[1735310112259,0.0464,96068.0,96065.0,0.052113]
[1735310112776,0.0464,96068.0,96067.0,0.052112]
[1735310113068,0.0474,96079.0,96067.0,0.052112]
[1735310113454,0.0474,96079.0,96056.0,0.052117]
[1735310113659,0.15667721,96070.0,96065.0,0.004]
[1735310113855,0.0474,96079.0,96065.0,0.004]
[1735310114263,0.0474,96079.0,96067.0,0.003]
[1735310114570,0.05211,96070.0,96067.0,0.003]
[1735310115053,0.05211,96070.0,96065.0,0.005]
[1735310115663,0.0474,96079.0,96065.0,0.003]
[1735310115859,0.0474,96079.0,96067.0,0.002]
[1735310116071,0.052107,96076.0,96067.0,0.002]
[1735310116571,0.052107,96076.0,96067.0,0.005]
[1735310116959,0.0474,96079.0,96067.0,0.005]
[1735310117270,0.052111,96068.0,96067.0,0.003]
[1735310117466,0.30208183,96069.0,96028.0,0.23502469]
[1735310117673,0.15667721,96060.0,96028.0,0.23502469]
[1735310117972,0.052118,96056.0,96028.0,0.0496]
[1735310118173,0.052118,96056.0,96045.0,0.052123]
[1735310118665,0.0486,96059.0,96028.0,0.0496]
[1735310118871,0.0486,96059.0,96030.0,0.15667721]
[1735310119071,0.00208183,96069.0,96040.0,0.15667721]
[1735310119273,0.00208183,96069.0,96059.0,0.15667721]
[1735310119569,0.098498,96092.0,96059.0,0.15667721]
[1735310119764,0.098498,96092.0,96082.0,0.052103]
[1735310119964,0.098498,96092.0,96083.0,0.052102]
[1735310120162,0.052098,96092.0,96061.0,0.052115]
[1735310120362,0.052098,96092.0,96060.0,0.3517]
[1735310120567,0.052098,96092.0,96082.0,0.052103]
[1735310120770,0.052104,96082.0,96071.0,0.052109]
[1735310120962,0.15667721,96080.0,96071.0,0.052109]
[1735310121165,0.15667721,96090.0,96071.0,0.052109]
[1735310121574,0.052105,96080.0,96071.0,0.052109]
[1735310122570,0.0521,96088.0,96061.0,0.001]
[1735310122773,0.014,96092.0,96061.0,0.001]
[1735310122978,0.007,96092.0,96091.0,0.052099]
[1735310123373,0.1,96100.0,96071.0,0.052109]
[1735310123572,0.1,96100.0,96080.0,0.15667721]
[1735310123878,0.1,96100.0,96099.0,0.052094]
[1735310124970,0.1,96100.0,96090.0,0.052099]
[1735310125175,0.005,96100.0,96089.0,0.052099]
[1735310125370,0.052094,96099.0,96089.0,0.052099]
[1735310125676,0.052094,96099.0,96090.0,0.052099]
[1735310125874,0.052094,96099.0,96092.0,0.052098]
[1735310126082,0.052094,96099.0,96093.0,0.052097]
[1735310126266,0.052085,96116.0,96107.0,0.05209]
[1735310126472,0.052085,96116.0,96081.0,0.052103]
[1735310126778,0.004,96100.0,96099.0,0.052094]
[1735310126972,0.052096,96097.0,96085.0,0.052102]
[1735310127173,0.052096,96097.0,96073.0,0.052108]
[1735310127375,0.052096,96097.0,96093.0,0.001]
[1735310127870,0.16467721,96100.0,96082.0,0.052103]
[1735310128181,0.16467721,96100.0,96060.0,0.51880378]
[1735310128182,0.052097,96095.0,96060.0,0.51880378]
[1735310128368,0.052097,96095.0,96084.0,0.052102]
[1735310128971,0.052097,96095.0,96085.0,0.052101]
[1735310129168,0.052097,96095.0,96061.0,0.3]
[1735310129377,0.005,96100.0,96061.0,0.3]
[1735310129378,0.052092,96103.0,96070.0,0.15667721]
[1735310129586,0.006,96097.0,96096.0,0.052096]
[1735310130089,0.006,96097.0,96080.0,0.15667721]
[1735310130090,0.001,96100.0,96097.0,0.052095]
[1735310130569,0.001,96100.0,96075.0,0.18542469]
[1735310130773,0.052107,96076.0,96075.0,0.18542469]
[1735310131679,0.0519,96084.0,96056.0,0.00064]
[1735310131885,0.15667721,96070.0,96052.0,0.052119]
[1735310132086,0.1103,96069.0,96052.0,0.052119]
[1735310132271,0.1103,96069.0,96050.0,0.0015615]
[1735310132470,0.1103,96069.0,96057.0,0.052117]
[1735310133581,0.1163,96069.0,96057.0,0.053117]
[1735310133784,0.4163,96069.0,96050.0,0.0015615]
[1735310133979,0.4163,96069.0,96048.0,0.18542469]
[1735310133980,0.052121,96049.0,96048.0,0.18542469]
[1735310134181,0.20880421,96039.0,96029.0,0.31118132]
[1735310134373,0.15667721,96039.0,96029.0,0.31118132]
[1735310134578,0.15667721,96050.0,96027.0,0.052133]
[1735310134886,0.31335442,96040.0,96025.0,0.31118132]
[1735310135072,0.052134,96027.0,96025.0,0.31118132]
[1735310135391,0.052129,96034.0,96025.0,0.31118132]
[1735310135582,0.31391443,96040.0,96025.0,0.31118132]
[1735310135883,0.31391443,96040.0,96014.0,0.00064]
[1735310135884,0.052134,96026.0,96014.0,0.00064]
[1735310136088,0.15667721,96030.0,96022.0,0.052136]
[1735310136388,0.004,96027.0,96022.0,0.052136]
[1735310136789,0.052132,96029.0,96022.0,0.052136]
[1735310136982,0.15667721,96030.0,96014.0,0.001]
[1735310137187,0.052137,96021.0,96015.0,0.05214]
[1735310137689,0.052139,96016.0,96014.0,0.001]
[1735310138089,0.052139,96016.0,96014.0,0.002]
[1735310138985,0.052139,96016.0,96014.0,0.001]
[1735310139184,0.003,96027.0,96014.0,0.001]
[1735310139487,0.009,96016.0,96014.0,0.002]
[1735310140081,0.012,96016.0,96014.0,0.001]
[1735310140486,0.064139,96016.0,96014.0,0.001]
[1735310140683,0.055139,96016.0,96005.0,0.052145]
[1735310140886,0.15667721,96015.0,96005.0,0.052145]
[1735310141383,0.15667721,96015.0,96000.0,0.1]
[1735310141587,0.052145,96007.0,96000.0,0.1]
[1735310141990,0.15667721,96015.0,96002.0,0.052147]
[1735310142191,0.052141,96013.0,96002.0,0.052147]
[1735310142587,0.15667721,96015.0,96002.0,0.052147]
[1735310142782,0.003,96007.0,96000.0,0.1]
[1735310143094,0.052147,96002.0,96000.0,0.1]
[1735310143783,0.052154,95989.0,95979.0,0.052159]
[1735310143979,0.052155,95988.0,95979.0,0.052159]
[1735310144287,0.052158,95982.0,95972.0,0.31118132]
[1735310144786,0.3,95982.0,95972.0,0.31118132]
[1735310144982,0.052172,95957.0,95953.0,0.31118132]
[1735310145178,0.052173,95954.0,95953.0,0.31118132]
[1735310145684,0.20884521,95963.0,95953.0,0.31118132]
[1735310145881,0.15667721,95963.0,95953.0,0.31118132]
[1735310146292,0.20884521,95963.0,95953.0,0.31118132]
[1735310146496,0.15667721,95963.0,95945.0,0.00064]
[1735310146688,0.007,95954.0,95953.0,0.001]
[1735310147084,0.15867721,95963.0,95940.0,0.15667721]
[1735310147387,0.009,95963.0,95953.0,0.001]
[1735310147789,0.16367721,95963.0,95958.0,0.05217]
[1735310147993,0.16367721,95963.0,95960.0,0.05217]
[1735310148386,0.007,95963.0,95962.0,0.052169]
[1735310148685,0.15667721,95980.0,95953.0,0.001]
[1735310148885,0.15667721,95980.0,95953.0,0.053173]
[1735310149084,0.35096001,96018.0,95954.0,0.0528]
[1735310149085,0.15667721,95990.0,95954.0,0.0528]
[1735310149289,0.35096001,96018.0,95996.0,0.05215]
[1735310149290,0.15667721,96000.0,95996.0,0.05215]
[1735310149495,0.15667721,96006.0,95996.0,0.05215]
[1735310149699,0.20882221,96006.0,95996.0,0.05215]
[1735310151391,0.052153,95992.0,95975.0,0.052161]
[1735310151595,0.15667721,95980.0,95955.0,0.0571]
[1735310151792,0.15667721,95980.0,95978.0,0.052159]
[1735310151986,0.15667721,95988.0,95980.0,0.052158]
[1735310152387,0.15667721,95988.0,95984.0,0.052157]
[1735310152594,0.052152,95994.0,95984.0,0.052157]
[1735310152795,0.052152,95993.0,95984.0,0.052157]
[1735310153291,0.052153,95991.0,95984.0,0.052157]
[1735310153491,0.002,95988.0,95977.0,0.05216]
[1735310153689,0.15667721,95987.0,95977.0,0.05216]
[1735310154693,0.15667721,95987.0,95956.0,0.052171]
[1735310155096,0.15667721,95987.0,95980.0,0.052158]
[1735310155295,0.004,95993.0,95960.0,0.15667721]
[1735310155500,0.002,95993.0,95986.0,0.052155]
[1735310155801,0.003,95987.0,95986.0,0.052155]
[1735310155999,0.001,95987.0,95986.0,0.052155]
[1735310156298,0.003,95987.0,95986.0,0.052155]
[1735310156499,0.002,95987.0,95986.0,0.052155]
[1735310156895,0.054155,95987.0,95978.0,0.052159]
[1735310157099,0.002,95987.0,95955.0,0.0571]
[1735310157405,0.15667721,95980.0,95955.0,0.0571]
[1735310158107,0.05216,95978.0,95964.0,0.052167]
[1735310158692,0.05216,95978.0,95965.0,0.052167]
[1735310158911,0.05216,95978.0,95957.0,0.052171]
[1735310159202,0.05216,95978.0,95965.0,0.052167]
[1735310159589,0.15667721,95980.0,95955.0,0.003]
[1735310159791,0.15667721,95980.0,95930.0,0.31118132]
[1735310159792,0.15667721,95965.0,95947.0,0.052176]
[1735310160000,0.052171,95958.0,95947.0,0.052176]
[1735310160396,0.15667721,95965.0,95947.0,0.052176]
[1735310160693,0.052176,95949.0,95939.0,0.052181]
[1735310161298,0.052176,95949.0,95933.0,0.31118132]
[1735310161697,0.052183,95936.0,95918.0,0.31118132]
[1735310162098,0.052183,95936.0,95927.0,0.052187]
[1735310162298,0.052183,95936.0,95918.0,0.31118132]
[1735310162299,0.3,95936.0,95918.0,0.31118132]
[1735310162495,0.052192,95920.0,95918.0,0.31118132]
[1735310163195,0.052192,95920.0,95918.0,0.32018132]
[1735310163404,0.052192,95920.0,95918.0,0.009]
[1735310163598,0.052192,95920.0,95918.0,0.01]
[1735310163802,0.31335442,95928.0,95903.0,0.30857551]
[1735310164002,0.052192,95919.0,95903.0,0.30857551]
[1735310164396,0.052192,95919.0,95909.0,0.052197]
[1735310164710,0.15667721,95940.0,95903.0,0.30857551]
[1735310165006,0.15667721,95920.0,95912.0,0.052195]
[1735310165207,0.15667721,95920.0,95918.0,0.001]
[1735310165393,0.15667721,95928.0,95918.0,0.001]
[1735310165597,0.052192,95920.0,95918.0,0.001]
[1735310165998,0.052193,95918.0,95903.0,0.004]
[1735310166198,0.15667721,95910.0,95903.0,0.0562]
[1735310166397,0.15667721,95910.0,95903.0,0.0542]
[1735310166593,0.15667721,95910.0,95904.0,0.0522]
[1735310167198,0.15767721,95920.0,95914.0,0.052194]
[1735310168210,0.15767721,95920.0,95903.0,0.002]
[1735310168401,0.15667721,95920.0,95903.0,0.002]
[1735310168706,0.20886821,95920.0,95912.0,0.052196]
[1735310168911,0.052195,95914.0,95904.0,0.0522]
[1735310169405,0.35096001,95962.0,95903.0,0.004]
[1735310169406,0.15667721,95930.0,95903.0,0.004]
[1735310169598,0.15667721,95930.0,95913.0,0.052195]
[1735310169901,0.15667721,95920.0,95913.0,0.052195]
[1735310170303,0.15667721,95920.0,95915.0,0.052194]
[1735310171395,0.052183,95936.0,95904.0,0.002]
[1735310171600,0.052181,95939.0,95932.0,0.052184]
[1735310171907,0.15667721,95940.0,95920.0,0.052191]
[1735310172101,0.15667721,95930.0,95922.0,0.05219]
[1735310172301,0.15767721,95930.0,95922.0,0.05219]
[1735310172702,0.15767721,95930.0,95924.0,0.052189]
[1735310172996,0.15667721,95930.0,95924.0,0.052189]
[1735310173202,0.15667721,95930.0,95905.0,0.24810621]
[1735310173512,0.052194,95917.0,95909.0,0.052197]
[1735310174005,0.052196,95912.0,95907.0,0.24810621]
[1735310174200,0.052198,95909.0,95907.0,0.24810621]
[1735310175505,0.15727722,95920.0,95900.0,0.1]
[1735310175808,0.15667721,95920.0,95900.0,0.1]
[1735310176013,0.01027568,95928.0,95904.0,0.0522]
[1735310176014,0.15667721,95910.0,95904.0,0.0522]
[1735310176312,0.052192,95919.0,95913.0,0.052195]
[1735310176512,0.01027568,95928.0,95907.0,0.001]
[1735310176809,0.052193,95918.0,95907.0,0.001]
[1735310177111,0.052195,95914.0,95900.0,0.102]
[1735310177411,0.15667721,95910.0,95900.0,0.102]
[1735310177803,0.15667721,95910.0,95900.0,0.105]
[1735310178200,0.15667721,95910.0,95900.0,0.154202]
[1735310178406,0.20887421,95910.0,95904.0,0.0522]
[1735310178604,0.20887421,95910.0,95907.0,0.001]
[1735310179013,0.052198,95909.0,95907.0,0.001]
[1735310179507,0.052198,95909.0,95904.0,0.001]
[1735310179897,0.052198,95909.0,95904.0,0.0532]
[1735310180098,0.15667721,95930.0,95904.0,0.001]
[1735310180413,0.15667721,95920.0,95916.0,0.052193]
[1735310180798,0.20886921,95920.0,95916.0,0.052193]
[1735310180998,0.052194,95916.0,95909.0,0.052197]
[1735310181316,0.052192,95919.0,95904.0,0.001]
[1735310181505,0.052192,95919.0,95900.0,0.102]
[1735310181506,0.31399442,95920.0,95900.0,0.102]
[1735310181707,0.15667721,95910.0,95907.0,0.001]
[1735310182009,0.052198,95908.0,95907.0,0.001]
[1735310182403,0.052202,95901.0,95900.0,0.1]
[1735310184408,0.052202,95901.0,95887.0,0.24810621]
[1735310184409,0.052209,95888.0,95887.0,0.24810621]
[1735310184809,0.15667721,95897.0,95877.0,0.24810621]
[1735310184810,0.052205,95896.0,95877.0,0.24810621]
[1735310185000,0.052205,95896.0,95890.0,0.052207]
[1735310185205,0.052205,95896.0,95887.0,0.10000065]
[1735310185206,0.052209,95888.0,95887.0,0.10000065]
[1735310185614,0.056209,95888.0,95887.0,0.10000065]
[1735310186208,0.052209,95888.0,95887.0,0.10000065]
[1735310186707,0.005,95896.0,95870.0,0.15667721]
[1735310186905,0.005,95896.0,95894.0,0.052205]
[1735310187411,0.005,95896.0,95895.0,0.09900065]
[1735310187709,0.15667721,95910.0,95880.0,0.24810621]
[1735310187921,0.15667721,95920.0,95884.0,0.052211]
[1735310188101,0.15667721,95920.0,95882.0,0.052212]
[1735310188303,0.052193,95918.0,95910.0,0.052197]
[1735310188812,0.052196,95913.0,95911.0,0.09900065]
[1735310189005,0.052196,95913.0,95902.0,0.052201]
[1735310189206,0.15667721,95912.0,95903.0,0.15120065]
[1735310189405,0.052199,95906.0,95897.0,0.30031021]
[1735310189607,0.15667721,95910.0,95898.0,0.09900065]
[1735310189811,0.052202,95901.0,95898.0,0.09900065]
[1735310190014,0.052203,95900.0,95898.0,0.09900065]
[1735310190711,0.31018091,95900.0,95888.0,0.37341758]
[1735310190917,0.052208,95889.0,95888.0,0.37341758]
[1735310192103,0.052209,95888.0,95877.0,0.052215]
[1735310192408,0.005,95889.0,95877.0,0.052215]
[1735310192611,0.05221,95886.0,95877.0,0.052215]
[1735310192819,0.005,95889.0,95877.0,0.052215]
[1735310193017,0.052216,95875.0,95866.0,0.05222]
[1735310193314,0.052214,95879.0,95857.0,0.0562]
[1735310193515,0.052211,95884.0,95873.0,0.052217]
[1735310193714,0.005,95889.0,95869.0,0.052219]
[1735310193911,0.052214,95879.0,95870.0,0.052218]
[1735310194124,0.001,95889.0,95877.0,0.001]
[1735310194319,0.052203,95899.0,95879.0,0.052213]
[1735310194620,0.15324771,95912.0,95882.0,0.052212]
[1735310194621,0.15667721,95890.0,95882.0,0.052212]
[1735310194810,0.20888521,95890.0,95884.0,0.052211]
[1735310195118,0.15324771,95912.0,95873.0,0.002]
[1735310195119,0.052205,95896.0,95888.0,0.052208]
[1735310195304,0.15667721,95898.0,95885.0,0.057]
[1735310195813,0.15667721,95898.0,95879.0,0.052214]
[1735310196017,0.052214,95879.0,95877.0,0.001]
[1735310197022,0.01053431,95879.0,95869.0,0.31195367]
[1735310197217,0.15667721,95880.0,95863.0,0.00068]
[1735310197518,0.05222,95869.0,95859.0,0.052225]
[1735310197707,0.05222,95869.0,95860.0,0.052224]
[1735310198119,0.01065109,95888.0,95854.0,0.057]
[1735310198418,0.15667721,95864.0,95854.0,0.057]
[1735310198619,0.15667721,95864.0,95863.0,0.004]
[1735310198817,0.052222,95865.0,95863.0,0.004]
[1735310199319,0.052231,95848.0,95844.0,0.31195367]
[1735310199908,0.052231,95848.0,95837.0,0.00068]
[1735310200119,0.15667721,95854.0,95835.0,0.31195367]
[1735310200320,0.15667721,95854.0,95839.0,0.052235]
[1735310200917,0.15667721,95854.0,95845.0,0.052232]
[1735310201117,0.002,95848.0,95845.0,0.052232]
[1735310201618,0.15667721,95870.0,95830.0,0.21747721]
[1735310201821,0.15388771,95879.0,95843.0,0.052233]
[1735310202016,0.15324771,95879.0,95846.0,0.052231]
[1735310202217,0.15324771,95879.0,95871.0,0.052218]
[1735310202426,0.03002796,95872.0,95871.0,0.052218]
[1735310203121,0.20889021,95881.0,95860.0,0.052224]
[1735310203313,0.15667721,95880.0,95847.0,0.3015649]
[1735310203515,0.15667721,95880.0,95865.0,0.052221]
[1735310203714,0.052214,95879.0,95865.0,0.052221]
[1735310204217,0.006,95872.0,95871.0,0.001]
[1735310204617,0.005,95872.0,95871.0,0.001]
[1735310204919,0.001,95879.0,95870.0,0.052219]
[1735310205221,0.001,95879.0,95859.0,0.052224]
[1735310205416,0.15667721,95870.0,95859.0,0.052224]
[1735310206118,0.15667721,95870.0,95847.0,0.31351857]
[1735310206119,0.052222,95865.0,95849.0,0.05223]
[1735310206323,0.15667721,95860.0,95847.0,0.31351857]
[1735310207221,0.15667721,95860.0,95840.0,0.37405758]
[1735310207222,0.05223,95849.0,95840.0,0.00064]
[1735310207413,0.0574,95848.0,95837.0,0.31195367]
[1735310207611,0.052236,95838.0,95837.0,0.31195367]
[1735310208426,0.052251,95811.0,95801.0,0.052256]
[1735310208612,0.052254,95806.0,95797.0,0.43621385]
[1735310208812,0.052254,95806.0,95797.0,0.00056]
[1735310209017,0.15667721,95814.0,95796.0,0.052259]
[1735310209422,0.052252,95809.0,95796.0,0.052259]
[1735310209622,0.052253,95807.0,95796.0,0.052259]
[1735310209813,0.15667721,95814.0,95787.0,0.43621385]
[1735310210022,0.15667721,95814.0,95801.0,0.052256]
[1735310210316,0.15667721,95830.0,95790.0,0.15667721]
[1735310210620,0.15667721,95830.0,95787.0,0.43621385]
[1735310210621,0.15667721,95820.0,95814.0,0.052249]
[1735310210818,0.15667721,95820.0,95804.0,0.0588196]
[1735310211132,0.15667721,95820.0,95809.0,0.052251]
[1735310211425,0.15667721,95830.0,95804.0,0.0055656]
[1735310211621,0.15667721,95820.0,95804.0,0.0055656]
[1735310211821,0.15667721,95820.0,95804.0,0.0035656]